bitfinex/quotes_SOLUSD_20240714
["timestamp","ask_amount","ask_price","bid_price","bid_amount"]
[1720961882538,22.931,144.47,144.43,45.0]
[1720961882919,1.73066736,144.46,144.43,45.0]
[1720961884554,1.73066736,144.46,144.42,20.0]
[1720961884733,1.73066736,144.46,144.36,40.83]
[1720961885046,1.73066736,144.46,144.37,45.0]
[1720961885338,1.73066736,144.46,144.38,20.0]
[1720961885644,1.73066736,144.46,144.39,45.0]
[1720961887126,22.2725,144.45,144.4,20.0]
[1720961887433,1.73110061,144.44,144.37,20.0]
[1720961887633,1.73110061,144.44,144.35,2.77627537]
[1720961887829,1.73110061,144.44,144.36,0.76976892]
[1720961888034,22.2725,144.45,144.33,48.05832273]
[1720961888236,1.73094444,144.44,144.33,50.83844564]
[1720961888422,1.73094444,144.44,144.34,0.76933441]
[1720961888826,1.73094444,144.44,144.34,45.0]
[1720961889026,1.73094444,144.44,144.35,20.0]
[1720961889227,1.73094444,144.44,144.36,45.0]
[1720961889429,1.73094444,144.44,144.37,20.0]
[1720961889748,1.73094444,144.44,144.38,45.0]
[1720961889930,1.73094444,144.44,144.39,20.0]
[1720961890130,1.73094444,144.44,144.4,45.0]
[1720961890628,1.73094444,144.44,144.39,20.0]
[1720961890848,1.73094444,144.44,144.34,20.0]
[1720961891147,1.73094444,144.44,144.35,45.0]
[1720961891337,1.73094444,144.44,144.36,20.0]
[1720961891525,1.73094444,144.44,144.37,45.76957076]
[1720961891730,1.73094444,144.44,144.38,20.0]
[1720961891930,1.73094444,144.44,144.39,45.76962722]
[1720961892155,1.73094444,144.44,144.4,20.0]
[1720961892840,1.73094444,144.44,144.34,20.0]
[1720961893039,1.73094444,144.44,144.35,45.76983873]
[1720961893236,1.73094444,144.44,144.36,20.0]
[1720961893435,1.73094444,144.44,144.37,45.0]
[1720961893741,1.73094444,144.44,144.38,20.0]
[1720961893946,1.73094444,144.44,144.38,20.34964521]
[1720961894140,1.73094444,144.44,144.38,20.76974873]
[1720961894732,1.73094444,144.44,144.38,20.0]
[1720961895329,22.2725,144.43,144.38,20.0]
[1720961895529,1.73143989,144.42,144.34,20.0]
[1720961895942,1.73143989,144.42,144.35,0.76995869]
[1720961896141,1.73143989,144.42,144.34,20.0]
[1720961896342,1.73143989,144.42,144.35,0.77026964]
[1720961896957,6.2208,144.41,144.32,8.73412968]
[1720961897147,16.0517,144.39,144.29,16.2539]
[1720961897347,1.73175668,144.38,144.29,23.48421386]
[1720961898337,1.73175668,144.38,144.3,20.0]
[1720961898760,1.73175668,144.38,144.31,45.0]
[1720961899153,6.2208,144.37,144.32,20.77108573]
[1720961899357,1.73196447,144.36,144.29,2.79766422]
[1720961899556,1.73196447,144.36,144.28,8.73412968]
[1720961900669,1.73196447,144.36,144.29,65.0]
[1720961900870,7.9527562,144.37,144.29,65.0]
[1720961901743,7.9527562,144.37,144.3,0.77144206]
[1720961901952,6.2208,144.37,144.3,0.77144206]
[1720961906475,1.73181056,144.36,144.3,0.77144206]
[1720961906781,6.2208,144.37,144.3,0.77144206]
[1720961907647,6.2208,144.37,144.29,65.0]
[1720961909988,6.2208,144.37,144.3,0.77106831]
[1720961914458,6.2208,144.37,144.29,85.83]
[1720961915280,6.2208,144.37,144.29,65.0]
[1720961916469,6.2208,144.37,144.3,0.77080707]
[1720961918360,6.2208,144.37,144.29,65.0]
[1720961919981,6.2208,144.37,144.3,0.7710712]
[1720961923676,6.2208,144.37,144.29,65.0]
[1720961924567,6.2208,144.37,144.3,0.77074051]
[1720961933695,16.0517,144.39,144.32,20.83]
[1720961933880,16.0517,144.39,144.33,85.83]
[1720961934797,16.0517,144.39,144.33,65.0]
[1720961935192,16.0517,144.39,144.33,85.83]
[1720961935373,16.0517,144.39,144.34,0.76984321]
[1720961937598,16.0517,144.39,144.33,85.83]
[1720961938407,16.0517,144.39,144.34,0.76983474]
[1720961939093,16.0517,144.39,144.32,20.0]
[1720961939983,16.0517,144.39,144.33,45.0]
[1720961940178,16.0517,144.39,144.34,20.0]
[1720961940505,16.0517,144.39,144.35,45.0]
[1720961940705,16.0517,144.39,144.36,20.0]
[1720961940899,16.0517,144.39,144.37,45.0]
[1720961941712,16.0517,144.39,144.36,20.0]
[1720961942019,17.78307756,144.39,144.32,22.68476846]
[1720961942224,17.78307756,144.39,144.33,45.77081018]
[1720961942420,17.78307756,144.39,144.34,20.0]
[1720961942628,17.78307756,144.39,144.35,0.77080471]
[1720961943415,17.78307756,144.39,144.33,0.77080471]
[1720961944107,17.78307756,144.39,144.33,45.77080471]
[1720961944308,17.78307756,144.39,144.34,20.0]
[1720961944493,17.78307756,144.39,144.35,45.77080081]
[1720961944690,17.78307756,144.39,144.36,20.0]
[1720961947810,17.78307756,144.39,144.36,20.77080483]
[1720961949216,16.0517,144.39,144.36,20.77080483]
[1720961949617,17.783271,144.39,144.36,20.77080483]
[1720961949820,16.0517,144.39,144.36,20.0]
[1720961949998,16.0517,144.39,144.37,45.0]
[1720961951118,16.0517,144.39,144.36,20.0]
[1720961951414,16.0517,144.39,144.32,20.0]
[1720961951589,16.0517,144.39,144.33,45.77037921]
[1720961951796,16.0517,144.39,144.34,20.0]
[1720961951994,16.0517,144.39,144.35,45.77038124]
[1720961952212,16.0517,144.39,144.36,20.77038124]
[1720961952421,16.0517,144.39,144.37,45.0]
[1720961954207,17.78313652,144.39,144.36,20.0]
[1720961954410,17.78313652,144.39,144.32,20.0]
[1720961955616,17.78313652,144.39,144.33,45.0]
[1720961955817,17.78313652,144.39,144.34,20.77097286]
[1720961956517,17.78313652,144.39,144.35,20.0]
[1720961956714,17.78313652,144.39,144.34,0.77097286]
[1720961956923,17.78313652,144.39,144.34,45.77097286]
[1720961957115,17.78313652,144.39,144.35,20.0]
[1720961960220,16.0517,144.39,144.36,45.77079338]
[1720961961404,16.0517,144.39,144.36,45.0]
[1720961965017,1.65376609,144.38,144.35,20.0]
[1720961965325,16.0517,144.39,144.31,20.77078952]
[1720961965526,1.73168086,144.38,144.31,20.77078952]
[1720961967208,1.73168086,144.38,144.31,20.0]
[1720961967427,1.73168086,144.38,144.32,0.77099382]
[1720961967631,1.73168086,144.38,144.32,45.77099382]
[1720961967944,1.73168086,144.38,144.33,20.0]
[1720961968125,1.73168086,144.38,144.34,45.0]
[1720961968431,1.73168086,144.38,144.35,20.0]
[1720961969027,17.78343999,144.39,144.36,45.0]
[1720961969218,17.78343999,144.39,144.34,45.0]
[1720961969419,17.78343999,144.39,144.3,2.78015562]
[1720961969615,17.78343999,144.39,144.27,389.68515881]
[1720961969821,17.78343999,144.39,144.28,45.0]
[1720961970023,7.96100741,144.38,144.28,45.0]
[1720961972140,7.96100741,144.38,144.29,0.77152718]
[1720961972315,7.96100741,144.38,144.29,20.77152718]
[1720961972518,7.96100741,144.38,144.3,45.0]
[1720961972717,7.96100741,144.38,144.31,20.0]
[1720961972918,7.96100741,144.38,144.32,45.0]
[1720961973118,7.96100741,144.38,144.33,20.0]
[1720961973422,7.96100741,144.38,144.34,45.0]
[1720961974931,7.96100741,144.38,144.33,20.0]
[1720961975141,7.96100741,144.38,144.28,20.0]
[1720961975320,7.96100741,144.38,144.29,45.0]
[1720961975520,7.96100741,144.38,144.3,20.77152116]
[1720961975721,7.96100741,144.38,144.31,45.0]
[1720961976122,7.96100741,144.38,144.32,20.0]
[1720961976644,7.96100741,144.38,144.32,20.77147614]
[1720961977653,7.96100741,144.38,144.32,20.0]
[1720961978834,7.96100741,144.38,144.32,20.77160283]
[1720961979451,7.96100741,144.38,144.32,20.0]
[1720961980640,7.96100741,144.38,144.32,20.77147614]
[1720961983335,7.96100741,144.38,144.32,20.0]
[1720961987670,7.96100741,144.38,144.32,20.77147614]
[1720961992463,7.96100741,144.38,144.32,20.0]
[1720961994275,7.96100741,144.38,144.33,45.0]
[1720961996797,7.96100741,144.38,144.34,0.77120744]
[1720961997105,7.96100741,144.38,144.33,45.0]
[1720961998697,7.96100741,144.38,144.33,45.52765155]
[1720961999698,7.96100741,144.38,144.33,45.0]
[1720962000586,7.96100741,144.38,144.33,45.77117201]
[1720962001496,7.96100741,144.38,144.33,45.0]
[1720962001911,7.96100741,144.38,144.32,20.0]
[1720962002108,7.96100741,144.38,144.3,2.74344573]
[1720962002313,6.9271,144.36,144.22,290.6722]
[1720962002607,17.01481895,144.35,144.22,407.85425797]
[1720962002770,17.01481895,144.35,144.23,7.25468635]
[1720962003374,17.01481895,144.35,144.23,15.98844432]
[1720962003593,17.01481895,144.35,144.24,10.24367472]
[1720962003994,17.01481895,144.35,144.24,18.62238534]
[1720962004204,17.01481895,144.35,144.24,38.67949636]
[1720962004410,17.01481895,144.35,144.25,20.772087]
[1720962004574,17.01481895,144.35,144.26,65.83]
[1720962004780,15.2823,144.35,144.27,30.24239763]
[1720962005001,15.2823,144.35,144.28,45.0]
[1720962005203,15.2823,144.35,144.29,20.77159518]
[1720962005522,15.2823,144.35,144.3,45.77154408]
[1720962005684,15.2823,144.35,144.31,20.0]
[1720962005878,15.2823,144.35,144.32,45.77139744]
[1720962006078,15.2823,144.35,144.33,20.7713484]
[1720962007207,6.4303,144.36,144.33,20.7713484]
[1720962007384,6.4303,144.36,144.34,45.0]
[1720962008007,6.4303,144.36,144.33,20.0]
[1720962008307,1.73203111,144.35,144.28,20.0]
[1720962008505,1.73203111,144.35,144.29,45.0]
[1720962008713,1.73203111,144.35,144.3,20.0]
[1720962008896,1.73203111,144.35,144.31,45.0]
[1720962009098,1.73203111,144.35,144.32,20.0]
[1720962012411,6.4303,144.36,144.32,20.0]
[1720962014215,1.73202031,144.35,144.32,20.0]
[1720962015016,6.4303,144.36,144.32,20.77160732]
[1720962015708,6.4303,144.36,144.32,20.0]
[1720962016009,1.73202309,144.38,144.32,20.0]
[1720962016208,22.9616,144.39,144.33,45.77159815]
[1720962016410,22.9616,144.39,144.34,20.0]
[1720962016612,22.9616,144.39,144.35,45.77036048]
[1720962016794,22.9616,144.39,144.36,20.7703612]
[1720962016995,6.3582,144.39,144.37,45.0]
[1720962017602,1.73133244,144.41,144.37,45.7703649]
[1720962017995,18.33475825,144.42,144.37,45.7703649]
[1720962018595,16.6034,144.42,144.38,20.0]
[1720962018900,16.6034,144.42,144.39,45.76957059]
[1720962020415,18.3345889,144.42,144.39,45.0]
[1720962020589,18.3345889,144.42,144.38,20.0]
[1720962020795,18.3345889,144.42,144.33,20.0]
[1720962020995,18.3345889,144.42,144.34,45.0]
[1720962021303,18.3345889,144.42,144.35,20.0]
[1720962021610,18.3345889,144.42,144.36,45.0]
[1720962021815,18.3345889,144.42,144.37,20.0]
[1720962021993,18.3345889,144.42,144.38,45.0]
[1720962022191,16.6034,144.42,144.39,20.76988307]
[1720962022412,18.33459454,144.42,144.39,20.0]
[1720962022916,18.33459454,144.42,144.39,20.76999278]
[1720962023410,16.6034,144.42,144.39,20.76999278]
[1720962023620,6.3582,144.43,144.4,45.0]
[1720962026524,6.3582,144.43,144.41,0.76923931]
[1720962026908,6.3582,144.43,144.4,45.0]
[1720962027821,1.73106329,144.45,144.4,45.0]
[1720962038030,1.73106329,144.45,144.4,45.76929047]
[1720962038513,1.73106329,144.45,144.4,45.0]
[1720962040738,1.73106329,144.45,144.39,20.0]
[1720962040924,1.73106329,144.45,144.37,20.0]
[1720962041123,1.73106329,144.45,144.4,20.0]
[1720962041826,1.73106329,144.45,144.39,20.76934375]
[1720962042025,1.73106329,144.45,144.4,45.0]
[1720962045641,1.73106329,144.45,144.4,45.76938333]
[1720962049439,22.9959,144.46,144.4,45.76938333]
[1720962049620,6.3925,144.46,144.41,20.0]
[1720962049942,6.3925,144.46,144.42,45.7686685]
[1720962052643,6.3925,144.46,144.42,45.0]
[1720962061645,1.73078905,144.45,144.42,45.0]
[1720962064337,1.73078905,144.45,144.41,20.0]
[1720962064667,1.73078905,144.45,144.42,65.0]
[1720962064953,1.73078905,144.45,144.42,45.0]
[1720962066630,6.3925,144.46,144.42,45.0]
[1720962066955,1.7308221,144.45,144.42,45.0]
[1720962067660,6.3925,144.46,144.42,45.0]
[1720962067957,1.73080261,144.45,144.42,45.0]
[1720962071273,6.3925,144.46,144.42,45.0]
[1720962071980,1.7308094,144.45,144.42,45.0]
[1720962072962,1.7308094,144.45,144.37,22.70562748]
[1720962073169,1.7308094,144.45,144.38,45.76910785]
[1720962073466,1.7308094,144.45,144.39,20.0]
[1720962073669,1.7308094,144.45,144.4,45.76895827]
[1720962073959,1.7308094,144.45,144.41,20.0]
[1720962074171,1.7308094,144.45,144.42,45.0]
[1720962074677,1.7308094,144.45,144.41,20.0]
[1720962074836,1.7308094,144.45,144.37,22.70562748]
[1720962075037,1.7308094,144.45,144.37,20.0]
[1720962075636,1.7308094,144.45,144.36,15.2612]
[1720962075872,1.7308094,144.45,144.37,0.76984741]
[1720962076546,1.7308094,144.45,144.37,45.76984741]
[1720962076978,1.7308094,144.45,144.38,20.0]
[1720962077178,1.7308094,144.45,144.39,45.76904935]
[1720962077384,1.7308094,144.45,144.4,20.76899853]
[1720962077689,1.7308094,144.45,144.41,45.0]
[1720962079199,1.42354783,144.45,144.41,45.0]
[1720962082098,22.9724,144.46,144.41,45.0]
[1720962082415,1.42353146,144.45,144.42,21.07634958]
[1720962082582,22.9724,144.46,144.43,45.0]
[1720962083672,1.4235494,144.48,144.43,45.0]
[1720962083871,1.65443712,144.47,144.43,45.0]
[1720962084172,1.93067945,144.49,144.43,45.0]
[1720962084381,1.93067945,144.49,144.44,1.07564429]
[1720962085510,0.2,144.49,144.44,20.0]
[1720962085827,0.2,144.49,144.45,45.0]
[1720962086800,0.2,144.49,144.46,20.0]
[1720962087007,0.2,144.49,144.47,45.0]
[1720962090899,0.2,144.49,144.48,20.0]
[1720962091212,0.2,144.49,144.48,65.0]
[1720962093404,207.38081376,144.5,144.48,65.0]
[1720962093628,191.32059429,144.5,144.49,46.0739457]
[1720962093792,189.42013022,144.5,144.49,20.0]
[1720962094308,16.488,144.49,144.38,15.1605]
[1720962094501,1.73100037,144.48,144.38,15.1605]
[1720962096108,1.73100037,144.48,144.38,17.9144077]
[1720962096604,1.73100037,144.48,144.39,20.0]
[1720962097120,1.73100037,144.48,144.4,1.07553081]
[1720962097414,1.73100037,144.48,144.39,20.0]
[1720962097913,195.42203022,144.5,144.39,28.37871062]
[1720962098104,195.42203022,144.5,144.4,75.30078574]
[1720962098293,195.42203022,144.5,144.41,20.0]
[1720962098500,195.42203022,144.5,144.42,45.0]
[1720962098705,195.42203022,144.5,144.43,20.0]
[1720962098906,195.42203022,144.5,144.44,45.0]
[1720962099106,195.42203022,144.5,144.45,20.0]
[1720962099394,189.42013022,144.5,144.46,45.0]
[1720962099624,189.42013022,144.5,144.47,20.0]
[1720962099803,189.42013022,144.5,144.48,45.0]
[1720962101021,189.42013022,144.5,144.49,20.0]
[1720962101394,189.42013022,144.5,144.49,65.0]
[1720962103817,176.18898082,144.5,144.49,65.0]
[1720962104696,163.30316519,144.5,144.49,65.0]
[1720962104897,155.18456988,144.5,144.49,66.0735495]
[1720962105297,151.82856988,144.5,144.49,66.0735495]
[1720962105800,151.82856988,144.5,144.49,65.0]
[1720962106001,142.35856988,144.5,144.49,65.0]
[1720962107017,139.46572078,144.5,144.49,65.0]
[1720962107222,126.66472078,144.5,144.49,65.92542331]
[1720962107811,124.58572078,144.5,144.49,65.92542331]
[1720962108015,124.58572078,144.5,144.49,65.0]
[1720962108317,122.50672078,144.5,144.49,65.0]
[1720962110918,105.50672078,144.5,144.49,65.0]
[1720962111310,103.42772078,144.5,144.49,65.0]
[1720962111711,101.34796491,144.5,144.49,65.0]
[1720962112520,93.34796491,144.5,144.49,65.0]
[1720962112899,76.34796491,144.5,144.49,65.0]
[1720962113295,74.26796491,144.5,144.49,65.0]
[1720962113511,50.66229966,144.5,144.49,65.0]
[1720962113800,37.79529966,144.5,144.49,85.83]
[1720962114109,13.89039766,144.5,144.49,104.75267176]
[1720962114311,13.89039766,144.5,144.49,104.75265355]
[1720962114312,3.591702,144.5,144.49,104.75265355]
[1720962114518,0.2,144.59,144.49,107.05137002]
[1720962114816,0.2,144.59,144.51,20.83]
[1720962115020,0.2,144.59,144.52,86.90150391]
[1720962115229,0.2,144.59,144.52,85.83]
[1720962115436,0.2,144.59,144.52,103.67949636]
[1720962115803,0.2,144.59,144.54,20.83]
[1720962116004,0.2,144.59,144.55,65.0]
[1720962116204,0.2,144.59,144.55,85.83]
[1720962118731,0.2,144.59,144.55,65.0]
[1720962119824,0.2,144.59,144.55,85.83]
[1720962120601,0.2,144.59,144.56,1.07071149]
[1720962120813,0.2,144.59,144.55,103.67949636]
[1720962122124,0.8617212,144.63,144.56,10.54120108]
[1720962122322,0.8617212,144.63,144.57,20.83]
[1720962122520,0.8617212,144.63,144.58,66.07001681]
[1720962123326,16.2371,144.67,144.59,36.1289]
[1720962123539,16.2371,144.67,144.6,65.0]
[1720962123733,0.2,144.69,144.61,0.7444176]
[1720962123942,0.2,144.69,144.61,1.06912519]
[1720962124315,0.2,144.69,144.61,10.53991093]
[1720962124516,0.2,144.69,144.62,85.83]
[1720962124732,0.2,144.69,144.63,1.06856635]
[1720962126922,0.2,144.69,144.63,31.36935209]
[1720962127119,0.2,144.69,144.64,65.0]
[1720962127430,0.2,144.69,144.65,1.06845665]
[1720962127628,0.2,144.69,144.65,20.83]
[1720962127831,0.2,144.69,144.66,45.0]
[1720962128146,0.2,144.69,144.67,1.06788146]
[1720962128308,0.2,144.69,144.67,1.06839026]
[1720962128507,0.2,144.69,144.66,65.0]
[1720962128919,0.2,144.69,144.67,1.06773576]
[1720962129212,0.2,144.69,144.67,1.0686926]
[1720962129413,0.2,144.69,144.68,1.06861843]
[1720962130134,0.2,144.69,144.66,65.0]
[1720962130436,0.2,144.69,144.67,1.0683773]
[1720962131025,0.2,144.69,144.67,1.06857722]
[1720962133917,0.2,144.69,144.63,12.25253843]
[1720962134126,23.117,144.69,144.63,1.06949289]
[1720962134418,22.917,144.66,144.52,390.4360508]
[1720962134634,54.722,144.64,144.53,0.03056631]
[1720962134932,8.03904402,144.63,144.45,30.83]
[1720962135133,8.03904402,144.63,144.48,28.07274091]
[1720962135319,8.03904402,144.63,144.48,31.50758619]
[1720962135525,8.03904402,144.63,144.5,20.83]
[1720962136149,8.03904402,144.63,144.51,20.0]
[1720962136643,8.03904402,144.63,144.51,40.83]
[1720962137150,8.03904402,144.63,144.52,45.0]
[1720962137319,8.03904402,144.63,144.53,20.0]
[1720962137526,8.03904402,144.63,144.54,45.0]
[1720962137739,8.03904402,144.63,144.55,20.0]
[1720962137940,8.03904402,144.63,144.56,45.0]
[1720962138246,8.03904402,144.63,144.57,20.0]
[1720962138445,8.03904402,144.63,144.58,45.0]
[1720962138821,8.03904402,144.63,144.57,20.0]
[1720962139017,8.03904402,144.63,144.51,20.0]
[1720962139225,14.95324402,144.63,144.5,20.0]
[1720962139631,8.03904402,144.63,144.5,20.0]
[1720962141238,14.95324402,144.63,144.5,20.0]
[1720962141443,8.03904402,144.63,144.5,20.0]
[1720962141633,14.95324402,144.63,144.51,45.0]
[1720962141827,14.95324402,144.63,144.52,20.0]
[1720962142027,8.03904402,144.63,144.53,45.0]
[1720962142225,8.03904402,144.63,144.54,20.0]
[1720962142442,8.03904402,144.63,144.55,45.0]
[1720962142639,8.03904402,144.63,144.56,20.0]
[1720962143418,8.03904402,144.63,144.57,45.0]
[1720962143623,8.03904402,144.63,144.56,20.0]
[1720962143823,8.03904402,144.63,144.5,20.0]
[1720962144018,8.03904402,144.63,144.51,45.0]
[1720962144244,8.03904402,144.63,144.52,20.0]
[1720962144547,8.03904402,144.63,144.53,45.0]
[1720962144745,8.03904402,144.63,144.54,20.0]
[1720962145041,8.03904402,144.63,144.55,45.0]
[1720962145228,8.03904402,144.63,144.56,20.0]
[1720962146343,8.03904402,144.63,144.57,45.0]
[1720962147436,8.03904402,144.63,144.56,20.0]
[1720962147646,8.03904402,144.63,144.51,20.0]
[1720962147847,8.03904402,144.63,144.52,45.0]
[1720962148022,8.03904402,144.63,144.53,20.0]
[1720962148225,8.03904402,144.63,144.54,45.0]
[1720962148638,8.03904402,144.63,144.55,20.0]
[1720962148928,8.03904402,144.63,144.56,45.0]
[1720962149122,8.03904402,144.63,144.57,20.0]
[1720962151851,8.03904402,144.63,144.58,45.0]
[1720962152440,8.03904402,144.63,144.57,20.0]
[1720962152639,8.03904402,144.63,144.51,20.0]
[1720962152843,8.03904402,144.63,144.52,45.0]
[1720962153065,8.03904402,144.63,144.53,20.93743672]
[1720962153358,8.03904402,144.63,144.54,45.0]
[1720962153552,8.03904402,144.63,144.55,21.07161631]
[1720962153750,8.03904402,144.63,144.56,45.0]
[1720962154050,8.03904402,144.63,144.57,21.07160126]
[1720962154051,6.3093,144.63,144.57,21.07160126]
[1720962154241,6.3093,144.63,144.58,45.0]
[1720962154443,6.3093,144.63,144.59,21.07067491]
[1720962154641,16.6077,144.64,144.6,45.0]
[1720962154949,16.6077,144.64,144.61,20.0]
[1720962155356,16.6077,144.64,144.62,45.0]
[1720962156651,1.72855783,144.63,144.61,20.0]
[1720962156853,1.72855783,144.63,144.54,20.0]
[1720962157150,16.6077,144.64,144.55,65.81]
[1720962157355,16.6077,144.64,144.56,40.81]
[1720962157662,16.6077,144.64,144.57,45.0]
[1720962157954,16.6077,144.64,144.58,20.0]
[1720962158131,16.6077,144.64,144.59,46.07071719]
[1720962158337,16.6077,144.64,144.6,20.0]
[1720962158538,16.6077,144.64,144.61,46.07052388]
[1720962158735,16.6077,144.64,144.62,20.0]
[1720962165247,6.4681,144.66,144.62,20.0]
[1720962165454,1.72833569,144.67,144.63,46.07001915]
[1720962166170,17.63103542,144.68,144.64,20.0]
[1720962166841,17.63103542,144.68,144.65,45.0]
[1720962166842,15.9027,144.68,144.65,45.0]
[1720962167656,1.92819575,144.69,144.65,45.0]
[1720962167853,0.2,144.69,144.66,1.06918194]
[1720962168655,0.2,144.69,144.65,45.0]
[1720962169086,0.2,144.69,144.66,20.0]
[1720962169383,0.2,144.69,144.67,45.0]
[1720962169591,0.2,144.69,144.66,20.0]
[1720962169794,1.5499667,144.69,144.66,20.0]
[1720962170584,0.2,144.69,144.67,45.0]
[1720962170768,0.2,144.69,144.66,20.0]
[1720962170972,0.2,144.69,144.61,20.0]
[1720962170973,6.3174,144.68,144.61,20.0]
[1720962171173,1.72850184,144.67,144.55,22.5535]
[1720962171388,1.34948468,144.66,144.55,16.4962]
[1720962171989,1.34948468,144.66,144.55,19.27833825]
[1720962172388,1.34948468,144.66,144.55,16.4962]
[1720962172578,1.34948468,144.66,144.56,20.0]
[1720962173659,1.34948468,144.66,144.54,22.77141265]
[1720962173897,1.34948468,144.66,144.55,1.07141696]
[1720962174671,1.34948468,144.66,144.54,20.0]
[1720962174864,1.34948468,144.66,144.55,45.0]
[1720962175061,1.34948468,144.66,144.56,20.0]
[1720962175287,1.34948468,144.66,144.57,45.0]
[1720962175496,1.34948468,144.66,144.58,20.0]
[1720962175789,1.34948468,144.66,144.59,45.0]
[1720962176104,1.34948468,144.66,144.6,20.0]
[1720962181372,6.3174,144.65,144.54,20.0]
[1720962181575,1.7290287,144.64,144.54,20.0]
[1720962182594,6.3174,144.65,144.55,45.0]
[1720962182794,1.72909584,144.64,144.56,20.0]
[1720962182990,1.72909584,144.64,144.57,45.0]
[1720962183208,1.72909584,144.64,144.58,20.0]
[1720962183980,22.7305,144.63,144.53,6.3174]
[1720962184303,1.72936043,144.62,144.52,2.73784547]
[1720962184482,1.72936043,144.62,144.5,24.29043758]
[1720962185800,1.72936043,144.62,144.5,45.10043758]
[1720962186098,1.72936043,144.62,144.51,65.0]
[1720962186497,1.72936043,144.62,144.52,1.38332685]
[1720962186698,1.72936043,144.62,144.51,65.0]
[1720962187005,1.72936043,144.62,144.52,1.38322665]
[1720962187890,1.72936043,144.62,144.51,65.0]
[1720962188090,1.72936043,144.62,144.51,85.81]
[1720962188404,1.72936043,144.62,144.51,65.0]
[1720962188702,1.72936043,144.62,144.52,1.38332727]
[1720962189508,1.72936043,144.62,144.51,85.81]
[1720962189705,1.72936043,144.62,144.52,1.38325958]
[1720962189883,1.72936043,144.62,144.51,85.81]
[1720962191282,1.72936043,144.62,144.51,65.0]
[1720962192310,1.72936043,144.62,144.51,73.16926618]
[1720962193412,1.72936043,144.62,144.52,1.38331942]
[1720962195091,1.72936043,144.62,144.52,9.5525856]
[1720962195397,1.72936043,144.62,144.53,65.0]
[1720962195590,1.72936043,144.62,144.54,1.38321608]
[1720962196588,1.72936043,144.62,144.55,1.38324823]
[1720962197723,1.72936043,144.62,144.54,1.38324701]
[1720962197901,1.72936043,144.62,144.55,1.38324876]
[1720962198105,1.72936043,144.62,144.53,65.0]
[1720962198907,22.7305,144.63,144.53,93.97926618]
[1720962199611,22.7305,144.63,144.55,20.81]
[1720962199928,22.7305,144.63,144.56,85.81]
[1720962200930,22.7305,144.63,144.56,65.0]
[1720962201808,22.7305,144.63,144.56,85.81]
[1720962202116,22.7305,144.63,144.57,1.38299694]
[1720962202324,22.7305,144.63,144.56,28.16926618]
[1720962202805,22.7305,144.63,144.57,1.38282417]
[1720962203009,22.7305,144.63,144.58,1.38272852]
[1720962203429,22.7305,144.63,144.58,9.5519947]
[1720962203430,16.4131,144.63,144.58,9.5519947]
[1720962203619,16.4131,144.63,144.59,45.0]
[1720962203825,16.4131,144.63,144.6,21.38281441]
[1720962204131,16.4131,144.63,144.61,45.0]
[1720962204327,16.4131,144.63,144.62,20.0]
[1720962204536,16.4131,144.63,144.62,65.0]
[1720962204834,6.4527,144.66,144.62,65.0]
[1720962205002,6.4527,144.66,144.63,45.0]
[1720962205205,6.4527,144.66,144.64,20.0]
[1720962205635,6.4527,144.66,144.65,45.0]
[1720962205822,15.1235,144.67,144.65,65.0]
[1720962206129,15.1235,144.67,144.66,20.0]
[1720962206319,15.1235,144.67,144.66,65.0]
[1720962207505,0.2,144.69,144.66,65.0]
[1720962207705,0.2,144.69,144.67,45.0]
[1720962208425,0.2,144.69,144.66,20.0]
[1720962208626,0.2,144.69,144.59,29.34189686]